fUSD/lending_fUSD_20260530
["ID","MTS","AMOUNT","RATE_DAILY","PERIOD"]
[423398759,1780084534000,-486.0,0.00029701,30]
[423398753,1780084534000,-336.09,0.00029528,120]
[423398757,1780084534000,-1581.0,0.00029701,30]
[423398756,1780084534000,-285.0,0.00029701,30]
[423398755,1780084534000,-204.0,0.00029701,30]
[423398758,1780084534000,-1192.0,0.00029701,30]
[423398762,1780084535000,-482.0,0.00029701,30]
[423398764,1780084535000,-2881.0,0.00029701,30]
[423398763,1780084535000,-495.0,0.00029701,30]
[423398765,1780084535000,-1123.0,0.00029701,30]
[423398766,1780084535000,-301.99884284,0.00029746,30]
[423398767,1780084535000,-175.0,0.00029758,120]
[423398770,1780084535000,-1007.26116879,0.0003,120]
[423398768,1780084535000,-500.0,0.0003,120]
[423398771,1780084535000,-150.0,0.0003,120]
[423398778,1780084535000,-333.34,0.00030137,120]
[423398777,1780084535000,-213.68,0.00030137,43]
[423398776,1780084535000,-9940.0,0.000301,120]
[423398769,1780084535000,-400.0,0.0003,120]
[423398774,1780084535000,-401.0,0.00030022,120]
[423398773,1780084535000,-160.0,0.0003,120]
[423398772,1780084535000,-5151.08996268,0.0003,120]
[423398775,1780084535000,-2964.88,0.00030082,120]
[423398786,1780084536000,-164.66,0.00030685,30]
[423398779,1780084536000,-1224.22,0.00030137,120]
[423398782,1780084536000,-333.34,0.00030384,120]
[423398781,1780084536000,-175.0,0.0003037,120]
[423398783,1780084536000,-1224.22,0.00030466,120]
[423398784,1780084536000,-333.34,0.00030548,120]
[423398785,1780084536000,-1224.22,0.0003063,120]
[423398780,1780084536000,-336.09,0.00030213,120]
[423398787,1780084536000,-462.0,0.000307,30]
[423398789,1780084536000,-285.0,0.00030701,30]
[423398796,1780084536000,-495.0,0.00030701,30]
[423398795,1780084536000,-482.0,0.00030701,30]
[423398794,1780084536000,-2078.0,0.00030701,30]
[423398788,1780084536000,-204.0,0.00030701,30]
[423398792,1780084536000,-486.0,0.00030701,30]
[423398790,1780084536000,-1581.0,0.00030701,30]
[423398791,1780084536000,-1192.0,0.00030701,30]
[423398793,1780084536000,-177.0,0.00030701,30]
[423398804,1780084537000,-2150.98902828,0.00031507,30]
[423398797,1780084537000,-2881.0,0.00030701,30]
[423398799,1780084537000,-301.99884284,0.0003092,30]
[423398800,1780084537000,-150.0,0.00031,120]
[423398802,1780084537000,-336.09,0.00031117,120]
[423398801,1780084537000,-500.0,0.00031049,120]
[423398803,1780084537000,-300.0,0.000314,120]
[423398798,1780084537000,-1123.0,0.00030701,30]
[423398806,1780084537000,-152.27896737,0.0003163,57]
[423398807,1780084537000,-462.0,0.000317,30]
[423398808,1780084537000,-204.0,0.00031701,30]
[423398809,1780084537000,-285.0,0.00031701,30]
[423398810,1780084537000,-1581.0,0.00031701,30]
[423398811,1780084537000,-1192.0,0.00031701,30]
[423398812,1780084537000,-486.0,0.00031701,30]
[423398813,1780084537000,-177.0,0.00031701,30]
[423398814,1780084537000,-2078.0,0.00031701,30]
[423398805,1780084537000,-152.27896737,0.0003163,57]
[423398821,1780084538000,-155.26223924,0.00032094,30]
[423398816,1780084538000,-495.0,0.00031701,30]
[423398817,1780084538000,-2881.0,0.00031701,30]
[423398819,1780084538000,-500.0,0.00032,120]
[423398818,1780084538000,-1123.0,0.00031701,30]
[423398820,1780084538000,-150.0,0.00032,120]
[423398822,1780084538000,-164.66,0.00032329,30]
[423398815,1780084538000,-482.0,0.00031701,30]
[423398824,1780084538000,-462.0,0.000327,30]
[423398826,1780084538000,-285.0,0.00032701,30]
[423398825,1780084538000,-204.0,0.00032701,30]
[423398828,1780084538000,-1192.0,0.00032701,30]
[423398827,1780084538000,-1581.0,0.00032701,30]
[423398830,1780084538000,-177.0,0.00032701,30]
[423398829,1780084538000,-486.0,0.00032701,30]
[423398831,1780084538000,-2078.0,0.00032701,30]
[423398823,1780084538000,-1530.75,0.00032347,30]
[423398832,1780084539000,-482.0,0.00032701,30]
[423398833,1780084539000,-495.0,0.00032701,30]
[423398834,1780084539000,-2881.0,0.00032701,30]
[423398835,1780084539000,-1123.0,0.00032701,30]
[423398836,1780084539000,-500.0,0.00032782,120]
[423398837,1780084539000,-4944.0,0.00032877,120]
[423398838,1780084539000,-213.68,0.00032877,120]
[423398840,1780084539000,-300.0,0.00033,120]
[423398839,1780084539000,-1553.22057224,0.00032877,30]
[423398842,1780084539000,-150.0,0.00033,120]
[423398841,1780084539000,-500.0,0.00033,60]
[423398843,1780084539000,-154.33948165,0.00033268,30]
[423398845,1780084539000,-1865.28,0.00033677,36]
[423398844,1780084539000,-369.16,0.00033467,30]
[423398847,1780084540000,-462.0,0.000337,30]
[423398846,1780084540000,-150.985,0.00033677,36]
[423398849,1780084540000,-285.0,0.00033701,30]
[423398848,1780084540000,-204.0,0.00033701,30]
[423398850,1780084540000,-1581.0,0.00033701,30]
[423398852,1780084540000,-486.0,0.00033701,30]
[423398853,1780084540000,-177.0,0.00033701,30]
[423398854,1780084540000,-2078.0,0.00033701,30]
[423398851,1780084540000,-1192.0,0.00033701,30]
[423398855,1780084540000,-482.0,0.00033701,30]
[423398861,1780084540000,-500.0,0.00034,120]
[423398862,1780084540000,-150.0,0.00034,120]
[423398859,1780084540000,-441.01,0.00033893,30]
[423398856,1780084540000,-495.0,0.00033701,30]
[423398857,1780084540000,-2881.0,0.00033701,30]
[423398858,1780084540000,-1123.0,0.00033701,30]
[423398863,1780084540000,-153.44976225,0.00034059,76]
[423398860,1780084540000,-164.66,0.00033973,30]
[423398872,1780084541000,-500.0,0.00034515,120]
[423398865,1780084541000,-1530.75,0.00034111,60]
[423398866,1780084541000,-9706.19999999,0.00034247,30]
[423398867,1780084541000,-330.0,0.00034342,36]
[423398869,1780084541000,-500.0,0.00034402,120]
[423398868,1780084541000,-3537.8,0.000344,30]
[423398871,1780084541000,-286.07,0.00034479,120]
[423398870,1780084541000,-154.33948165,0.00034442,30]
[423398864,1780084541000,-153.44976225,0.00034059,76]
[423398873,1780084541000,-2964.88,0.00034521,120]
[423398875,1780084541000,-2308.14,0.00034544,60]
[423398876,1780084541000,-884.76,0.00034544,60]
[423398877,1780084541000,-423.38,0.0003459,30]
[423398878,1780084541000,-462.0,0.000347,30]
[423398879,1780084541000,-204.0,0.00034701,30]
[423398880,1780084541000,-285.0,0.00034701,30]
[423398881,1780084541000,-1581.0,0.00034701,30]
[423398882,1780084541000,-1192.0,0.00034701,30]
[423398874,1780084541000,-257.77,0.00034544,60]
[423398889,1780084542000,-1123.0,0.00034701,30]
[423398887,1780084542000,-495.0,0.00034701,30]
[423398886,1780084542000,-482.0,0.00034701,30]
[423398890,1780084542000,-500.0,0.00034757,120]
[423398884,1780084542000,-177.0,0.00034701,30]
[423398883,1780084542000,-486.0,0.00034701,30]
[423398885,1780084542000,-2078.0,0.00034701,30]
[423398892,1780084542000,-1001.0,0.00034849,120]
[423398888,1780084542000,-2881.0,0.00034701,30]
[423398893,1780084542000,-200.0,0.00035,120]
[423398899,1780084542000,-750.0,0.00035462,120]
[423398900,1780084542000,-1197.09,0.00035616,60]
[423398897,1780084542000,-330.0,0.00035342,38]
[423398898,1780084542000,-500.0,0.00035462,120]
[423398891,1780084542000,-563.87609265,0.00034757,120]
[423398901,1780084542000,-4562.24232684,0.00035616,30]
[423398895,1780084542000,-269.39040089,0.00035117,120]
[423398894,1780084542000,-150.0,0.00035,120]
[423398896,1780084542000,-1058.45,0.0003513,69]
[423398902,1780084543000,-213.67,0.00035616,120]
[423398903,1780084543000,-1058.45,0.0003567,98]
[423398904,1780084543000,-462.0,0.000357,30]
[423398905,1780084543000,-204.0,0.00035701,30]
[423398906,1780084543000,-285.0,0.00035701,30]
[423398907,1780084543000,-1581.0,0.00035701,30]
[423398909,1780084543000,-486.0,0.00035701,30]
[423398910,1780084543000,-177.0,0.00035701,30]
[423398908,1780084543000,-1192.0,0.00035701,30]
[423398913,1780084543000,-495.0,0.00035701,30]
[423398920,1780084543000,-2112.7,0.000359,120]
[423398918,1780084543000,-1530.75,0.00035874,60]
[423398919,1780084543000,-3537.8,0.000359,30]
[423398916,1780084543000,-500.0,0.00035708,31]
[423398911,1780084543000,-2078.0,0.00035701,30]
[423398915,1780084543000,-1123.0,0.00035701,30]
[423398914,1780084543000,-2881.0,0.00035701,30]
[423398912,1780084543000,-482.0,0.00035701,30]
[423398917,1780084543000,-500.0,0.0003577,30]
[423398929,1780084544000,-330.0,0.00036232,40]
[423398923,1780084544000,-2396.45,0.00036,30]
[423398922,1780084544000,-500.0,0.00036,120]
[423398925,1780084544000,-3647.1,0.00036153,30]
[423398924,1780084544000,-150.0,0.00036,120]
[423398926,1780084544000,-249.46,0.000362,31]
[423398927,1780084544000,-332.48,0.000362,31]
[423398928,1780084544000,-1058.45,0.0003621,114]
[423398921,1780084544000,-174.158015,0.00036,30]
[423398930,1780084544000,-500.0,0.00036248,120]
[423398932,1780084544000,-259.14,0.00036333,31]
[423398939,1780084544000,-153.68,0.00036758,60]
[423398938,1780084544000,-153.68,0.00036658,60]
[423398937,1780084544000,-153.68884074,0.00036636,60]
[423398931,1780084544000,-500.0,0.00036248,120]
[423398935,1780084544000,-150.51,0.00036632,30]
[423398933,1780084544000,-153.77118067,0.00036487,89]
[423398934,1780084544000,-153.77118067,0.00036487,89]
[423398936,1780084544000,-441.01,0.00036633,30]
[423398946,1780084545000,-1328.57716142,0.00037,120]
[423398941,1780084545000,-500.0,0.0003678,36]
[423398943,1780084545000,-2112.7,0.000369,120]
[423398942,1780084545000,-153.68,0.00036858,60]
[423398945,1780084545000,-239.324487,0.00037,35]
[423398944,1780084545000,-153.68,0.00036958,60]
[423398947,1780084545000,-962.21810297,0.00037,120]
[423398940,1780084545000,-1058.45,0.0003676,120]
[423398949,1780084545000,-150.0,0.00037,120]
[423398951,1780084545000,-153.72420368,0.00037058,60]
[423398950,1780084545000,-330.0,0.00037025,43]
[423398953,1780084545000,-302.33,0.000372,36]
[423398952,1780084545000,-3537.8,0.000371,30]
[423398955,1780084545000,-1058.45,0.000373,60]
[423398954,1780084545000,-301.65375937,0.00037212,120]
[423398956,1780084545000,-404.2,0.000373,90]
[423398957,1780084545000,-638.84372223,0.000373,30]
[423398958,1780084545000,-638.84372221,0.000373,30]
[423398948,1780084545000,-979.56670211,0.00037,120]
[423398965,1780084546000,-409.58986341,0.00037428,90]
[423398964,1780084546000,-1334.32,0.000374,90]
[423398963,1780084546000,-269.39040089,0.00037357,120]
[423398966,1780084546000,-500.0,0.00037432,120]
[423398962,1780084546000,-186.26605817,0.000373,30]
[423398960,1780084546000,-186.26605818,0.000373,30]
[423398959,1780084546000,-638.84372221,0.000373,30]
[423398961,1780084546000,-186.26605817,0.000373,30]
[423398968,1780084546000,-150.0,0.00037495,120]
[423398969,1780084546000,-1530.75,0.00037638,60]
[423398970,1780084546000,-330.0,0.00037731,46]
[423398975,1780084546000,-302.33,0.000379,39]
[423398976,1780084546000,-302.33,0.000379,39]
[423398974,1780084546000,-500.0,0.00037883,42]
[423398967,1780084546000,-750.0,0.00037432,120]
[423398972,1780084546000,-151.36,0.000378,90]
[423398971,1780084546000,-249.46,0.000378,38]
[423398977,1780084546000,-2112.7,0.000379,120]
[423398973,1780084546000,-1058.45,0.0003784,86]
[423398978,1780084547000,-150.0,0.00037977,120]
[423398979,1780084547000,-500.0,0.00038,120]
[423398980,1780084547000,-259.14,0.00038,39]
[423398981,1780084547000,-3537.8,0.00038,30]
[423398982,1780084547000,-150.0,0.00038,120]
[423398984,1780084547000,-1328.57716142,0.000381,120]
[423398983,1780084547000,-150.0,0.00038029,120]
[423398986,1780084547000,-979.56670211,0.000381,120]
[423398987,1780084547000,-3647.1,0.00038125,30]
[423398988,1780084547000,-500.0,0.00038213,120]
[423398989,1780084547000,-31011.39,0.00038276,60]
[423398990,1780084547000,-4185.75,0.00038276,60]
[423398992,1780084547000,-777.59,0.000383,120]
[423398991,1780084547000,-1908.98,0.000383,120]
[423398985,1780084547000,-962.21810297,0.000381,120]
[423399000,1780084548000,-150.55,0.00038604,30]
[423398993,1780084548000,-1885.53,0.000383,120]
[423398994,1780084548000,-1999.96,0.000383,120]
[423398995,1780084548000,-2085.0,0.00038329,120]
[423398997,1780084548000,-500.0,0.00038341,120]
[423398999,1780084548000,-1058.45,0.0003838,105]
[423398998,1780084548000,-330.0,0.00038359,50]
[423399002,1780084548000,-500.0,0.00038643,120]
[423398996,1780084548000,-1654.68639575,0.00038329,120]
[423399004,1780084548000,-3046.26,0.0003888,30]
[423399003,1780084548000,-16559.70160593,0.0003888,120]
[423399011,1780084548000,-150.0,0.00039,120]
[423399009,1780084548000,-330.0,0.00038918,55]
[423399010,1780084548000,-1058.45,0.0003892,116]
[423399001,1780084548000,-441.15,0.00038605,30]
[423399006,1780084548000,-1000.0,0.000389,70]
[423399007,1780084548000,-154.46010038,0.00038916,102]
[423399005,1780084548000,-2112.7,0.000389,120]
[423399008,1780084548000,-154.46010038,0.00038916,102]
[423399012,1780084549000,-500.0,0.00039,120]
[423399013,1780084549000,-758.58505848,0.00039,120]
[423399014,1780084549000,-1000.0,0.00039,70]
[423399016,1780084549000,-150.0,0.00039175,30]
[423399015,1780084549000,-500.0,0.00039019,49]
[423399017,1780084549000,-150.0,0.00039175,30]
[423399019,1780084549000,-150.0,0.0003924,120]
[423399020,1780084549000,-365.54,0.00039243,120]
[423399018,1780084549000,-259.733335,0.000392,45]
[423399021,1780084549000,-200.0,0.00039275,30]
[423399029,1780084549000,-30922.70202251,0.00039373,30]
[423399028,1780084549000,-818.93,0.00039357,120]
[423399027,1780084549000,-818.93,0.00039357,120]
[423399030,1780084549000,-30922.70202251,0.00039373,30]
[423399025,1780084549000,-979.56670211,0.000393,120]
[423399023,1780084549000,-1328.57716142,0.000393,120]
[423399024,1780084549000,-962.21810297,0.000393,120]
[423399026,1780084549000,-800.0,0.000393,120]
[423399022,1780084549000,-4651.14519482,0.000393,120]
[423399038,1780084550000,-285.0,0.00039401,120]
[423399031,1780084550000,-30922.70202251,0.00039373,30]
[423399032,1780084550000,-150.0,0.00039373,30]
[423399033,1780084550000,-183.86108154,0.00039375,120]
[423399035,1780084550000,-3537.8,0.000394,30]
[423399034,1780084550000,-259.733333,0.000394,46]
[423399036,1780084550000,-462.0,0.00039401,120]
[423399037,1780084550000,-204.0,0.00039401,120]
[423399039,1780084550000,-1581.0,0.00039401,120]
[423399042,1780084550000,-177.0,0.00039401,120]
[423399041,1780084550000,-486.0,0.00039401,120]
[423399043,1780084550000,-2078.0,0.00039401,120]
[423399044,1780084550000,-482.0,0.00039401,120]
[423399045,1780084550000,-495.0,0.00039402,120]
[423399046,1780084550000,-2881.0,0.00039402,120]
[423399047,1780084550000,-1123.0,0.00039402,120]
[423399040,1780084550000,-1192.0,0.00039401,120]
[423399049,1780084551000,-330.0,0.00039416,60]
[423399048,1780084551000,-1530.75,0.00039402,90]
[423399051,1780084551000,-181.9356528,0.00039452,120]
[423399050,1780084551000,-544.58635767,0.00039452,120]
[423399053,1780084551000,-1058.45,0.0003947,120]
[423399052,1780084551000,-150.0,0.00039461,120]
[423399055,1780084551000,-2000.0,0.000395,120]
[423399054,1780084551000,-46000.0,0.000395,120]
[423399057,1780084551000,-412.80894091,0.000395,120]
[423399059,1780084551000,-5619.0,0.000397,117]
[423399058,1780084551000,-1000.0,0.000395,70]
[423399061,1780084551000,-174.28,0.00039726,30]
[423399060,1780084551000,-150.0,0.00039704,120]
[423399063,1780084551000,-330.0,0.00039859,66]
[423399062,1780084551000,-500.0,0.00039753,120]
[423399056,1780084551000,-1000.0,0.000395,120]
[423399065,1780084552000,-4758.89286308,0.0003988,50]
[423399064,1780084552000,-1000.0,0.00039877,120]
[423399066,1780084552000,-249.344,0.000399,49]
[423399067,1780084552000,-2112.7,0.000399,120]
[423399068,1780084552000,-18990.38759093,0.0003998,30]
[423399069,1780084552000,-238.07129863,0.00039999,31]
[423399070,1780084552000,-580.56025311,0.00039999,31]
[423399072,1780084552000,-425.40507651,0.00039999,31]
[423399071,1780084552000,-500.0,0.00039999,31]
[423399074,1780084552000,-500.0,0.00039999,31]
[423399082,1780084552000,-500.0,0.00039999,31]
[423399080,1780084552000,-500.0,0.00039999,31]
[423399079,1780084552000,-500.0,0.00039999,31]
[423399081,1780084552000,-218.24456357,0.00039999,31]
[423399077,1780084552000,-500.0,0.00039999,31]
[423399075,1780084552000,-500.0,0.00039999,31]
[423399076,1780084552000,-500.0,0.00039999,31]
[423399078,1780084552000,-500.0,0.00039999,31]
[423399073,1780084552000,-238.21113327,0.00039999,31]
[423399091,1780084553000,-6367.88,0.0004,120]
[423399083,1780084553000,-338.9924091,0.00039999,31]
[423399084,1780084553000,-500.0,0.00039999,31]
[423399086,1780084553000,-500.0,0.00039999,31]
[423399085,1780084553000,-500.0,0.00039999,31]
[423399087,1780084553000,-500.0,0.00039999,31]
[423399089,1780084553000,-10000.0,0.0004,120]
[423399088,1780084553000,-500.0,0.00039999,31]
[423399092,1780084553000,-2425.98445201,0.0004,120]
[423399093,1780084553000,-2000.0,0.0004,120]
[423399094,1780084553000,-350.0,0.0004,30]
[423399095,1780084553000,-784.07568476,0.0004,120]
[423399096,1780084553000,-30000.0,0.0004,60]
[423399097,1780084553000,-30000.0,0.0004,60]
[423399099,1780084553000,-30000.0,0.0004,60]
[423399098,1780084553000,-30000.0,0.0004,60]
[423399100,1780084553000,-15560.93467292,0.0004,60]
[423399090,1780084553000,-500.0,0.0004,120]
[423399105,1780084554000,-1000.0,0.0004,120]
[423399106,1780084554000,-150.0,0.0004,120]
[423399104,1780084554000,-1000.0,0.0004,120]
[423399107,1780084554000,-500.0,0.0004,120]
[423399101,1780084554000,-5996.97869181,0.0004,120]
[423399102,1780084554000,-10131.91088449,0.0004,120]
[423399103,1780084554000,-200.0,0.0004,120]
[423399109,1780084554000,-151.0,0.0004,120]
[423399112,1780084554000,-1830.0,0.0004,30]
[423399110,1780084554000,-151.0,0.0004,120]
[423399116,1780084554000,-163.0,0.0004,120]
[423399117,1780084554000,-2284.9042649,0.0004,41]
[423399114,1780084554000,-10000.0,0.0004,30]
[423399108,1780084554000,-151.0,0.0004,120]
[423399118,1780084554000,-1000.0,0.0004,90]
[423399113,1780084554000,-1000.0,0.0004,30]
[423399111,1780084554000,-204.0,0.0004,120]
[423399115,1780084554000,-2002.53,0.0004,120]
[423399126,1780084555000,-2005.9555727,0.00040135,30]
[423399119,1780084555000,-2000.0,0.0004,90]
[423399120,1780084555000,-11549.71805744,0.0004,40]
[423399121,1780084555000,-2000.0,0.0004,120]
[423399122,1780084555000,-1058.45,0.0004001,120]
[423399123,1780084555000,-1327.15,0.00040044,120]
[423399124,1780084555000,-176.152383,0.000401,49]
[423399125,1780084555000,-150.0,0.0004013,120]
[423399128,1780084555000,-500.0,0.00040179,120]
[423399136,1780084555000,-285.0,0.00040401,120]
[423399129,1780084555000,-332.48,0.000402,50]
[423399130,1780084555000,-308.944186,0.000402,50]
[423399131,1780084555000,-330.0,0.00040254,72]
[423399133,1780084555000,-221.653334,0.000404,51]
[423399132,1780084555000,-198.11752,0.000404,51]
[423399135,1780084555000,-204.0,0.00040401,120]
[423399134,1780084555000,-462.0,0.00040401,120]
[423399137,1780084555000,-1581.0,0.00040401,120]
[423399127,1780084555000,-1000.0,0.0004015,90]
[423399144,1780084556000,-2881.0,0.00040402,120]
[423399143,1780084556000,-495.0,0.00040402,120]
[423399142,1780084556000,-482.0,0.00040401,120]
[423399145,1780084556000,-1123.0,0.00040402,120]
[423399141,1780084556000,-2078.0,0.00040401,120]
[423399138,1780084556000,-1192.0,0.00040401,120]
[423399139,1780084556000,-486.0,0.00040401,120]
[423399140,1780084556000,-177.0,0.00040401,120]
[423399146,1780084556000,-500.0,0.00040435,120]
[423399147,1780084556000,-1328.57716142,0.000405,120]
[423399148,1780084556000,-962.21810297,0.000405,120]
[423399155,1780084556000,-330.0,0.00040605,79]
[423399154,1780084556000,-5319.63179883,0.000406,120]
[423399153,1780084556000,-1058.45,0.0004055,120]
[423399156,1780084556000,-150.0,0.00040691,120]
[423399151,1780084556000,-500.0,0.00040507,60]
[423399150,1780084556000,-1000.0,0.000405,90]
[423399149,1780084556000,-979.56670211,0.000405,120]
[423399152,1780084556000,-151.0,0.00040507,60]
[423399163,1780084557000,-150.0,0.00040874,120]
[423399158,1780084557000,-150.0,0.00040721,120]
[423399157,1780084557000,-200.0,0.00040712,120]
[423399160,1780084557000,-3462.21,0.00040861,120]
[423399159,1780084557000,-1001.0,0.00040767,120]
[423399162,1780084557000,-5000.0,0.0004087,120]
[423399161,1780084557000,-215.44293369,0.00040863,120]
[423399164,1780084557000,-23279.27,0.00040885,120]
[423399165,1780084557000,-2112.7,0.000409,120]
[423399167,1780084557000,-330.0,0.00040918,86]
[423399172,1780084557000,-800.0,0.00041,45]
[423399173,1780084557000,-800.0,0.00041,45]
[423399170,1780084557000,-3000.0,0.00041,120]
[423399174,1780084557000,-800.0,0.00041,45]
[423399168,1780084557000,-1934.38338736,0.00040999,30]
[423399169,1780084557000,-259.733335,0.00041,54]
[423399166,1780084557000,-358.05985837,0.000409,30]
[423399171,1780084557000,-800.0,0.00041,45]
[423399181,1780084558000,-800.0,0.00041,45]
[423399176,1780084558000,-800.0,0.00041,45]
[423399175,1780084558000,-800.0,0.00041,45]
[423399178,1780084558000,-800.0,0.00041,45]
[423399177,1780084558000,-800.0,0.00041,45]
[423399179,1780084558000,-800.0,0.00041,45]
[423399180,1780084558000,-800.0,0.00041,45]
[423399183,1780084558000,-2000.0,0.00041,120]
[423399190,1780084558000,-1000.0,0.00041,120]
[423399185,1780084558000,-37693.19604311,0.00041,120]
[423399184,1780084558000,-12681.18349193,0.00041,120]
[423399186,1780084558000,-116280.67780963,0.00041,120]
[423399187,1780084558000,-1000.0,0.00041,120]
[423399188,1780084558000,-1000.0,0.00041,120]
[423399189,1780084558000,-1000.0,0.00041,120]
[423399192,1780084558000,-151.0,0.00041,120]
[423399191,1780084558000,-1001.02784,0.00041,120]
[423399182,1780084558000,-2000.0,0.00041,120]
[423399199,1780084559000,-150.0,0.00041031,120]
[423399198,1780084559000,-2000.0,0.00041,90]
[423399197,1780084559000,-1000.0,0.00041,90]
[423399193,1780084559000,-151.0,0.00041,120]
[423399196,1780084559000,-2500.0,0.00041,42]
[423399194,1780084559000,-681.27367365,0.00041,30]
[423399195,1780084559000,-20000.0,0.00041,30]
[423399200,1780084559000,-1456.1,0.00041041,120]
[423399202,1780084559000,-817.71721021,0.00041094,120]
[423399204,1780084559000,-500.0,0.00041095,120]
[423399203,1780084559000,-1220.5259,0.00041095,120]
[423399205,1780084559000,-500.0,0.00041095,120]
[423399206,1780084559000,-181.60559068,0.00041095,120]
[423399207,1780084559000,-500.0,0.00041095,120]
[423399209,1780084559000,-500.0,0.00041095,120]
[423399208,1780084559000,-500.0,0.00041095,120]
[423399201,1780084559000,-1058.45,0.0004109,120]
[423399210,1780084560000,-500.0,0.00041095,120]
[423399211,1780084560000,-500.0,0.00041095,120]
[423399212,1780084560000,-619.03266816,0.00041095,120]
[423399213,1780084560000,-504.38,0.00041095,120]
[423399214,1780084560000,-500.0,0.00041095,120]
[423399217,1780084560000,-500.0,0.00041095,120]
[423399216,1780084560000,-1015.95,0.00041095,120]
[423399218,1780084560000,-500.0,0.00041095,120]
[423399219,1780084560000,-1042.81,0.00041095,120]
[423399221,1780084560000,-635.66,0.00041095,120]
[423399220,1780084560000,-611.5,0.00041095,120]
[423399215,1780084560000,-500.0,0.00041095,120]
[423399222,1780084561000,-500.0,0.00041095,120]
[423399223,1780084561000,-836.03,0.00041095,120]
[423399224,1780084561000,-806.76,0.00041095,120]
[423399225,1780084561000,-500.0,0.00041095,120]
[423399227,1780084561000,-500.0,0.00041095,120]
[423399226,1780084561000,-500.0,0.00041095,120]
[423399228,1780084561000,-500.0,0.00041095,120]
[423399229,1780084561000,-500.0,0.00041095,120]
[423399232,1780084561000,-1171.69,0.00041095,120]
[423399231,1780084561000,-500.0,0.00041095,120]
[423399233,1780084561000,-500.0,0.00041095,120]
[423399234,1780084561000,-500.0,0.00041095,120]
[423399235,1780084561000,-608.12,0.00041095,120]
[423399236,1780084561000,-1221.98,0.00041095,120]
[423399237,1780084561000,-500.0,0.00041095,120]
[423399230,1780084561000,-173.88521848,0.00041095,120]
[423399238,1780084562000,-1101.3,0.00041095,120]
[423399243,1780084562000,-525.35,0.00041095,120]
[423399241,1780084562000,-1588.59,0.00041095,120]
[423399240,1780084562000,-500.0,0.00041095,120]
[423399242,1780084562000,-500.0,0.00041095,120]
[423399244,1780084562000,-500.0,0.00041095,120]
[423399239,1780084562000,-500.0,0.00041095,120]
[423399246,1780084562000,-860.62,0.00041095,120]
[423399247,1780084562000,-500.0,0.00041095,120]
[423399248,1780084562000,-950.29,0.00041095,120]
[423399249,1780084562000,-500.0,0.00041095,120]
[423399250,1780084562000,-1248.29,0.00041095,120]
[423399251,1780084562000,-560.64673032,0.00041095,120]
[423399245,1780084562000,-667.1,0.00041095,120]
[423399252,1780084563000,-500.0,0.00041095,120]
[423399253,1780084563000,-500.0,0.00041095,120]
[423399254,1780084563000,-500.0,0.00041095,120]
[423399256,1780084563000,-500.0,0.00041095,120]